[Event "3rd FIDE WCCC Rapid U08 2019"]
[Site "Minsk"]
[Date "2019.08.17"]
[Round "6.2"]
[White "Nematolahi, Amirali"]
[Black "Bayramli, Rafael"]
[Result "1/2-1/2"]
[ECO "B21"]
[WhiteElo "1220"]
[BlackElo "1514"]
[Annotator "NA"]
[PlyCount "117"]
[EventDate "2019.08.16"]
[EventType "swiss"]
[EventCountry "BLR"]
[SourceTitle "playchess.com"]
[Source "ChessBase"]
[SourceQuality "1"]
[TimeControl "600+5"]

1. e4 {[%emt 0:00:00]} c5 {[%emt 0:00:00]} 2. d4 {[%emt 0:00:00]} cxd4 {[%emt 0:00:00]} 3. c3 {[%emt 0:00:01]} dxc3 {[%emt 0:00:03]} 4. Nxc3 {[%emt 0:00:02]} Nc6 {[%emt 0:00:04]} 5. Nf3 {[%emt 0:00:02]} d6 {[%emt 0:00:04]} 6. Bc4 {[%emt 0:00:02]} e6 {[%emt 0:00:02]} 7. O-O {[%emt 0:00:02]} Be7 {[%emt 0:00:06]} 8. Qe2 {[%emt 0:00:02]} e5 {[%emt 0:00:28]} 9. Rd1 {[%emt 0:00:01]} Nf6 {[%emt 0:00:11]} 10. Be3 {[%emt 0:00:09]} O-O {[%emt 0:00:21]} 11. b4 {[%emt 0:00:01]} Bg4 {[%emt 0:00:46]} 12. b5 Na5 {[%emt 0:00:36]} 13. Bd5 {[%emt 0:00:21]} Rc8 {[%emt 0:00:38]} 14. Rac1 {[%emt 0:00:05]} b6 {[%emt 0:00:45]} 15. h3 {[%emt 0:00:28]} Bxf3 {[%emt 0:00:31]} 16. Qxf3 {[%emt 0:00:04]} Nc4 {[%emt 0:00:56]} 17. Bc6 {[%emt 0:00:18]} a6 {[%emt 0:00:47]} 18. Bb7 {[%emt 0:00:11]} Nxe3 {[%emt 0:01:09]} 19. Qxe3 {[%emt 0:00:02]} Rc7 {[%emt 0:00:26]} 20. bxa6 {[%emt 0:00:08]} Nd7 {[%emt 0:00:27]} 21. Nd5 {[%emt 0:00:22]} Rxc1 {[%emt 0:00:16]} 22. Rxc1 {[%emt 0:00:03]} Nc5 {[%emt 0:00:03]} 23. a3 {[%emt 0:00:32]} Bg5 {[%emt 0:00:44]} 24. Qe1 {[%emt 0:00:37]} Nd3 {[%emt 0:00:40]} 25. Qd1 {[%emt 0:01:46]} Nxc1 {[%emt 0:00:06]} 26. a7 {[%emt 0:00:33]} Qd7 {[%emt 0:00:31]} 27. a8=Q {[%emt 0:00:06]} Rxa8 {[%emt 0:00:03]} 28. Bxa8 {[%emt 0:00:04]} Qc8 {[%emt 0:00:48]} 29. Nxb6 {[%emt 0:00:11]} Qb8 {[%emt 0:00:01]} 30. Qa4 {[%emt 0:00:03]} h5 {[%emt 0:00:32]} 31. Qc6 {[%emt 0:00:32]} Ne2+ {[%emt 0:00:19]} 32. Kh1 {[%emt 0:00:01]} Nd4 {[%emt 0:00:03]} 33. Qc8+ {[%emt 0:00:23]} Qxc8 {[%emt 0:00:01]} 34. Nxc8 {[%emt 0:00:02]} Nb5 {[%emt 0:00:16]} 35. a4 {[%emt 0:00:07]} Nc7 {[%emt 0:00:02]} 36. Bd5 {[%emt 0:00:01]} Nxd5 {[%emt 0:00:06]} 37. exd5 {[%emt 0:00:01]} Bd8 {[%emt 0:00:04]} 38. Nxd6 {[%emt 0:00:03]} Kf8 {[%emt 0:00:05]} 39. Nb7 {[%emt 0:00:06]} Bb6 {[%emt 0:00:08]} 40. a5 {[%emt 0:00:00]} Bxf2 {[%emt 0:00:01]} 41. d6 {[%emt 0:00:05]} Ke8 {[%emt 0:00:01]} 42. a6 {[%emt 0:00:02]} Kd7 {[%emt 0:00:02]} 43. g4 {[%emt 0:00:03]} hxg4 {[%emt 0:00:02]} 44. hxg4 {[%emt 0:00:02]} e4 {[%emt 0:00:03]} 45. Kg2 {[%emt 0:00:04]} Bb6 {[%emt 0:00:01]} 46. Kf1 {[%emt 0:00:08]} f6 {[%emt 0:00:04]} 47. Ke2 {[%emt 0:00:03]} g6 {[%emt 0:00:01]} 48. Kd2 {[%emt 0:00:20]} f5 {[%emt 0:00:03]} 49. gxf5 {[%emt 0:00:28]} gxf5 {[%emt 0:00:01]} 50. Ke2 {[%emt 0:00:01]} f4 {[%emt 0:00:01]} 51. Na5 {[%emt 0:00:02]} f3+ {[%emt 0:00:05]} 52. Kf1 {[%emt 0:00:01]} Kxd6 {[%emt 0:00:11]} 53. Nc4+ {[%emt 0:00:12]} Kc7 {[%emt 0:00:02]} 54. Nd2 {[%emt 0:00:04]} e3 {[%emt 0:00:23]} 55. Nxf3 {[%emt 0:00:02]} Kb8 {[%emt 0:00:04]} 56. Ke2 {[%emt 0:00:03]} Ka7 {[%emt 0:00:01]} 57. Ne5 {[%emt 0:00:02]} Kxa6 {[%emt 0:00:02]} 58. Nc4 {[%emt 0:00:00]} Bd4 {[%emt 0:00:02]} 59. Nxe3 {[%emt 0:00:02]} 1/2-1/2

[Event "3rd FIDE WCCC Rapid U08 2019"]
[Site "Minsk"]
[Date "2019.08.17"]
[Round "6.3"]
[White "Preobrazhenskaya, Diana"]
[Black "Saulin, Grigoriy"]
[Result "1-0"]
[ECO "C55"]
[WhiteElo "1361"]
[BlackElo "1117"]
[Annotator "NA"]
[PlyCount "43"]
[EventDate "2019.08.16"]
[EventType "swiss"]
[EventCountry "BLR"]
[SourceTitle "playchess.com"]
[Source "ChessBase"]
[SourceQuality "1"]
[TimeControl "600+5"]

1. e4 {[%emt 0:00:00]} e5 {[%emt 0:00:00]} 2. Bc4 {[%emt 0:00:00]} Nc6 {[%emt 0:00:00]} 3. Nf3 {[%emt 0:00:02]} Nf6 {[%emt 0:00:12]} 4. d4 {[%emt 0:00:15]} exd4 {[%emt 0:00:09]} 5. O-O {[%emt 0:00:22]} d6 {[%emt 0:01:40]} 6. Nxd4 {[%emt 0:00:54]} Be7 {[%emt 0:00:42]} 7. Nc3 {[%emt 0:01:01]} Nxd4 {[%emt 0:00:09]} 8. Qxd4 {[%emt 0:00:07]} O-O {[%emt 0:00:02]} 9. f4 {[%emt 0:00:42]} c6 {[%emt 0:02:41]} 10. Be3 {[%emt 0:01:39]} Ng4 {[%emt 0:00:49]} 11. h3 {[%emt 0:00:53]} Nxe3 {[%emt 0:00:03]} 12. Qxe3 {[%emt 0:00:02]} b6 {[%emt 0:00:54]} 13. Qd3 {[%emt 0:01:28]} a5 {[%emt 0:00:16]} 14. a4 {[%emt 0:00:16]} Bf6 {[%emt 0:00:52]} 15. f5 {[%emt 0:00:16]} Be5 {[%emt 0:00:34]} 16. Qf3 {[%emt 0:00:18]} Bb7 {[%emt 0:00:16]} 17. Qg4 {[%emt 0:00:29]} Qf6 {[%emt 0:00:11]} 18. Ne2 {[%emt 0:00:33]} Bxb2 {[%emt 0:00:59]} 19. Rab1 {[%emt 0:00:11]} Bd4+ {[%emt 0:00:13]} 20. Kh1 {[%emt 0:00:07]} Bc5 {[%emt 0:00:17]} 21. Nf4 {[%emt 0:00:27]} Bd4 {[%emt 0:00:37]} 22. Nh5 {[%emt 0:00:11]} 1-0

[Event "3rd FIDE WCCC Rapid U08 2019"]
[Site "Minsk"]
[Date "2019.08.17"]
[Round "6.5"]
[White "Yeganegi, Barad"]
[Black "Baryshnikov, Grigoriy"]
[Result "1-0"]
[ECO "A57"]
[WhiteElo "1612"]
[BlackElo "1227"]
[Annotator "NA"]
[PlyCount "88"]
[EventDate "2019.08.16"]
[EventType "swiss"]
[EventCountry "BLR"]
[SourceTitle "playchess.com"]
[Source "ChessBase"]
[SourceQuality "1"]
[TimeControl "600+5"]

1. d4 {[%emt 0:00:00]} Nf6 {[%emt 0:00:00]} 2. c4 {[%emt 0:00:00]} c5 {[%emt 0:00:00]} 3. d5 {[%emt 0:00:00]} b5 {[%emt 0:00:00]} 4. cxb5 {[%emt 0:00:01]} g6 {[%emt 0:00:02]} 5. Nc3 {[%emt 0:00:03]} Bg7 {[%emt 0:00:01]} 6. e4 {[%emt 0:00:01]} d6 {[%emt 0:00:06]} 7. Nf3 {[%emt 0:00:02]} O-O {[%emt 0:00:02]} 8. Qc2 {[%emt 0:00:05]} Bg4 {[%emt 0:00:32]} 9. Be2 {[%emt 0:00:03]} Nbd7 {[%emt 0:00:02]} 10. O-O {[%emt 0:00:14]} Re8 {[%emt 0:00:12]} 11. Bf4 {[%emt 0:00:12]} Qc7 {[%emt 0:00:08]} 12. h3 {[%emt 0:00:18]} Bxf3 {[%emt 0:00:05]} 13. Bxf3 {[%emt 0:00:02]} Rab8 {[%emt 0:00:30]} 14. Rac1 {[%emt 0:00:08]} Qb7 {[%emt 0:00:21]} 15. Rfe1 {[%emt 0:00:10]} a6 {[%emt 0:00:04]} 16. bxa6 {[%emt 0:00:22]} Qxa6 {[%emt 0:00:08]} 17. Rb1 {[%emt 0:00:10]} Rb7 {[%emt 0:01:14]} 18. Be2 {[%emt 0:00:05]} Qa7 {[%emt 0:00:11]} 19. Bh2 {[%emt 0:00:47]} Reb8 {[%emt 0:00:06]} 20. a4 {[%emt 0:00:15]} Rb4 {[%emt 0:00:39]} 21. Bb5 {[%emt 0:00:19]} Nb6 {[%emt 0:00:34]} 22. b3 {[%emt 0:00:57]} Nfd7 {[%emt 0:00:44]} 23. Bf4 {[%emt 0:01:25]} Ne5 {[%emt 0:00:16]} 24. Be3 {[%emt 0:01:17]} Ra8 {[%emt 0:01:12]} 25. Bd2 {[%emt 0:00:52]} c4 {[%emt 0:01:59]} 26. bxc4 {[%emt 0:02:07]} Rxb1 27. Nxb1 {[%emt 0:00:30]} Nxa4 {[%emt 0:00:21]} 28. Be3 {[%emt 0:00:08]} Nc5 29. Rd1 {[%emt 0:00:41]} Qc7 {[%emt 0:01:03]} 30. Kh1 {[%emt 0:00:30]} Ncd7 {[%emt 0:00:35]} 31. f4 {[%emt 0:00:18]} Ng4 32. hxg4 {[%emt 0:00:05]} Qd8 {[%emt 0:01:13]} 33. Kg1 {[%emt 0:00:08]} Rb8 {[%emt 0:00:04]} 34. Qa4 {[%emt 0:00:01]} Nb6 {[%emt 0:00:03]} 35. Qc2 {[%emt 0:00:03]} Nd7 {[%emt 0:00:01]} 36. Nd2 {[%emt 0:00:09]} e6 {[%emt 0:00:09]} 37. dxe6 {[%emt 0:00:02]} fxe6 {[%emt 0:00:01]} 38. Nf3 {[%emt 0:00:05]} Qe7 {[%emt 0:00:02]} 39. Qd3 {[%emt 0:00:04]} d5 {[%emt 0:00:07]} 40. exd5 exd5 {[%emt 0:00:03]} 41. Qxd5+ {[%emt 0:00:03]} Kh8 {[%emt 0:00:08]} 42. Bf2 {[%emt 0:00:01]} Nf6 {[%emt 0:00:02]} 43. Qd6 {[%emt 0:00:02]} Qe4 {[%emt 0:00:18]} 44. Qxb8+ {[%emt 0:00:02]} Ne8 1-0

[Event "3rd FIDE WCCC Rapid U08 2019"]
[Site "Minsk"]
[Date "2019.08.17"]
[Round "6.6"]
[White "Murashko, Vasiliy"]
[Black "Bouska, Jiri"]
[Result "0-1"]
[ECO "A22"]
[WhiteElo "1247"]
[BlackElo "1505"]
[Annotator "NA"]
[PlyCount "46"]
[EventDate "2019.08.16"]
[EventType "swiss"]
[EventCountry "BLR"]
[SourceTitle "playchess.com"]
[Source "ChessBase"]
[SourceQuality "1"]
[TimeControl "600+5"]

1. c4 {[%emt 0:00:00]} e5 {[%emt 0:00:00]} 2. Nc3 {[%emt 0:00:00]} Nf6 {[%emt 0:00:02]} 3. e3 {[%emt 0:00:00]} c5 {[%emt 0:00:08]} 4. b3 {[%emt 0:00:08]} Nc6 {[%emt 0:00:03]} 5. Bb2 {[%emt 0:00:01]} d5 {[%emt 0:00:02]} 6. cxd5 {[%emt 0:00:23]} Nxd5 {[%emt 0:00:01]} 7. Nxd5 {[%emt 0:00:04]} Qxd5 {[%emt 0:00:02]} 8. d4 {[%emt 0:00:39]} cxd4 {[%emt 0:00:03]} 9. exd4 {[%emt 0:00:04]} Bb4+ {[%emt 0:00:03]} 10. Qd2 {[%emt 0:00:26]} Bxd2+ {[%emt 0:00:10]} 11. Kxd2 {[%emt 0:00:02]} Nxd4 {[%emt 0:00:02]} 12. Bd3 {[%emt 0:00:05]} e4 {[%emt 0:00:05]} 13. Ne2 {[%emt 0:00:13]} Nxe2 {[%emt 0:00:04]} 14. Kxe2 {[%emt 0:00:04]} Qxd3+ {[%emt 0:00:02]} 15. Ke1 {[%emt 0:00:01]} Bg4 {[%emt 0:00:02]} 16. f3 {[%emt 0:00:05]} e3 {[%emt 0:00:05]} 17. Rd1 {[%emt 0:00:07]} Qc2 {[%emt 0:00:11]} 18. Rf1 {[%emt 0:00:22]} e2 {[%emt 0:00:01]} 19. Rd2 {[%emt 0:00:07]} exf1=Q+ {[%emt 0:00:09]} 20. Kxf1 {[%emt 0:00:02]} Qxd2 {[%emt 0:00:07]} 21. Bxg7 {[%emt 0:00:04]} Rc8 {[%emt 0:00:07]} 22. Bb2 Rc2 23. Bd4 {[%emt 0:00:29]} Qd1# {[%emt 0:00:11]} 0-1

[Event "3rd FIDE WCCC Rapid U08 2019"]
[Site "Minsk"]
[Date "2019.08.17"]
[Round "7.1"]
[White "Preobrazhenskaya, Diana"]
[Black "Usov, Dmitry E."]
[Result "1/2-1/2"]
[ECO "B10"]
[WhiteElo "1361"]
[BlackElo "1331"]
[Annotator "NA"]
[PlyCount "162"]
[EventDate "2019.08.16"]
[EventType "swiss"]
[EventCountry "BLR"]
[SourceTitle "playchess.com"]
[Source "ChessBase"]
[SourceQuality "1"]
[TimeControl "600+5"]

1. e4 {[%emt 0:00:00]} c6 {[%emt 0:00:00]} 2. c4 {[%emt 0:00:12]} d5 {[%emt 0:00:00]} 3. exd5 {[%emt 0:00:03]} cxd5 {[%emt 0:00:00]} 4. cxd5 {[%emt 0:00:06]} Nf6 {[%emt 0:00:00]} 5. Qa4+ {[%emt 0:00:14]} Bd7 {[%emt 0:00:10]} 6. Qb3 {[%emt 0:00:02]} Qc7 {[%emt 0:00:05]} 7. Nc3 {[%emt 0:01:32]} a6 {[%emt 0:00:12]} 8. Nf3 {[%emt 0:00:29]} e6 {[%emt 0:00:25]} 9. Be2 {[%emt 0:01:05]} Be7 {[%emt 0:00:09]} 10. O-O {[%emt 0:00:15]} O-O {[%emt 0:00:07]} 11. d4 {[%emt 0:00:26]} exd5 {[%emt 0:00:11]} 12. Nxd5 {[%emt 0:00:11]} Nxd5 {[%emt 0:00:02]} 13. Qxd5 {[%emt 0:00:05]} Nc6 {[%emt 0:00:09]} 14. Qe4 {[%emt 0:00:41]} f5 {[%emt 0:00:40]} 15. Bc4+ {[%emt 0:00:47]} Kh8 {[%emt 0:00:05]} 16. Qe2 {[%emt 0:00:49]} Rae8 {[%emt 0:00:36]} 17. Qd2 {[%emt 0:00:21]} b5 18. Bb3 {[%emt 0:00:17]} Na5 {[%emt 0:01:41]} 19. Qd3 {[%emt 0:00:56]} Bc6 {[%emt 0:00:39]} 20. Ne5 {[%emt 0:00:40]} Nxb3 {[%emt 0:00:27]} 21. Qxb3 {[%emt 0:00:11]} Bd6 {[%emt 0:00:06]} 22. Nxc6 Qxc6 {[%emt 0:00:02]} 23. Qh3 {[%emt 0:00:52]} Re4 {[%emt 0:00:13]} 24. Bd2 {[%emt 0:00:28]} Rxd4 {[%emt 0:00:06]} 25. Bc3 {[%emt 0:00:04]} Rg4 {[%emt 0:00:05]} 26. Rac1 {[%emt 0:00:11]} Qb6 {[%emt 0:00:22]} 27. Kh1 {[%emt 0:00:09]} Qd8 {[%emt 0:00:11]} 28. Qf3 {[%emt 0:00:12]} Qh4 {[%emt 0:00:18]} 29. h3 {[%emt 0:00:24]} Rg6 {[%emt 0:00:13]} 30. Rfd1 {[%emt 0:00:13]} Qf4 {[%emt 0:00:33]} 31. Qxf4 {[%emt 0:00:04]} Bxf4 {[%emt 0:00:02]} 32. Bd2 {[%emt 0:00:08]} Bxd2 {[%emt 0:00:11]} 33. Rxd2 {[%emt 0:00:01]} h6 {[%emt 0:00:03]} 34. Rcd1 {[%emt 0:00:12]} Kh7 {[%emt 0:00:10]} 35. Rd6 {[%emt 0:00:03]} Rff6 {[%emt 0:00:05]} 36. Rxf6 {[%emt 0:00:06]} Rxf6 {[%emt 0:00:04]} 37. g3 {[%emt 0:00:08]} Rc6 {[%emt 0:00:17]} 38. Rd2 Kg6 {[%emt 0:00:02]} 39. Kg2 {[%emt 0:00:08]} Kf6 40. f4 {[%emt 0:00:13]} g5 {[%emt 0:00:10]} 41. Kf3 h5 42. fxg5+ {[%emt 0:00:15]} Kxg5 {[%emt 0:00:13]} 43. Re2 {[%emt 0:00:06]} Rc4 {[%emt 0:00:08]} 44. h4+ {[%emt 0:00:02]} Kf6 {[%emt 0:00:04]} 45. Kf2 {[%emt 0:00:09]} a5 {[%emt 0:00:08]} 46. b3 {[%emt 0:00:04]} Rd4 {[%emt 0:00:03]} 47. Rc2 {[%emt 0:00:06]} Ke5 {[%emt 0:00:06]} 48. Ke3 {[%emt 0:00:02]} Rd5 {[%emt 0:00:13]} 49. Re2 {[%emt 0:00:09]} Kf6 {[%emt 0:00:09]} 50. Kf4 {[%emt 0:00:03]} Rd4+ {[%emt 0:00:28]} 51. Kf3 {[%emt 0:00:04]} Rd3+ {[%emt 0:00:04]} 52. Kf2 {[%emt 0:00:07]} b4 {[%emt 0:00:07]} 53. Kg2 {[%emt 0:00:08]} a4 {[%emt 0:00:15]} 54. bxa4 {[%emt 0:00:02]} Ra3 {[%emt 0:00:02]} 55. a5 {[%emt 0:00:04]} Rxa5 {[%emt 0:00:01]} 56. Kf3 {[%emt 0:00:02]} Ra3+ {[%emt 0:00:09]} 57. Kf4 {[%emt 0:00:06]} b3 {[%emt 0:00:12]} 58. axb3 {[%emt 0:00:03]} Rxb3 59. Re1 {[%emt 0:00:09]} Rb4+ {[%emt 0:00:16]} 60. Kf3 {[%emt 0:00:02]} Rb5 {[%emt 0:00:05]} 61. Re2 {[%emt 0:00:06]} Rb4 {[%emt 0:00:05]} 62. Re3 {[%emt 0:00:06]} Rg4 {[%emt 0:00:42]} 63. Re2 {[%emt 0:00:08]} f4 {[%emt 0:00:04]} 64. Rg2 {[%emt 0:00:09]} fxg3 {[%emt 0:00:06]} 65. Rxg3 {[%emt 0:00:02]} Rxh4 {[%emt 0:00:02]} 66. Kg2 {[%emt 0:00:04]} Kf5 {[%emt 0:00:02]} 67. Rh3 {[%emt 0:00:04]} Rg4+ {[%emt 0:00:05]} 68. Kh1 {[%emt 0:00:10]} h4 {[%emt 0:00:02]} 69. Kh2 {[%emt 0:00:04]} Kf4 {[%emt 0:00:02]} 70. Kh1 {[%emt 0:00:08]} Ke4 {[%emt 0:00:05]} 71. Kh2 {[%emt 0:00:03]} Rf4 {[%emt 0:00:04]} 72. Kg2 {[%emt 0:00:06]} Kf5 {[%emt 0:00:09]} 73. Rf3 {[%emt 0:00:07]} Kg4 {[%emt 0:00:07]} 74. Rxf4+ {[%emt 0:00:02]} Kxf4 {[%emt 0:00:02]} 75. Kh3 {[%emt 0:00:01]} Kg5 {[%emt 0:00:01]} 76. Kh2 {[%emt 0:00:01]} Kg4 {[%emt 0:00:02]} 77. Kg2 {[%emt 0:00:02]} h3+ {[%emt 0:00:01]} 78. Kh2 {[%emt 0:00:01]} Kh4 {[%emt 0:00:02]} 79. Kh1 {[%emt 0:00:01]} Kg3 {[%emt 0:00:01]} 80. Kg1 {[%emt 0:00:01]} h2+ {[%emt 0:00:01]} 81. Kh1 {[%emt 0:00:02]} Kh3 {[%emt 0:00:01]} 1/2-1/2

[Event "3rd FIDE WCCC Rapid U08 2019"]
[Site "Minsk"]
[Date "2019.08.17"]
[Round "7.2"]
[White "Bouska, Jiri"]
[Black "Rose, Noah"]
[Result "1-0"]
[ECO "C78"]
[WhiteElo "1505"]
[BlackElo "1589"]
[Annotator "NA"]
[PlyCount "89"]
[EventDate "2019.08.16"]
[EventType "swiss"]
[EventCountry "BLR"]
[SourceTitle "playchess.com"]
[Source "ChessBase"]
[SourceQuality "1"]
[TimeControl "600+5"]

1. e4 {[%emt 0:00:00]} e5 {[%emt 0:00:00]} 2. Nf3 {[%emt 0:00:00]} Nc6 {[%emt 0:00:00]} 3. Bb5 {[%emt 0:00:00]} a6 {[%emt 0:00:05]} 4. Ba4 {[%emt 0:00:00]} Nf6 {[%emt 0:00:04]} 5. O-O {[%emt 0:00:01]} b5 {[%emt 0:00:02]} 6. Bb3 {[%emt 0:00:01]} Bc5 {[%emt 0:00:03]} 7. h3 {[%emt 0:00:03]} O-O {[%emt 0:00:15]} 8. Re1 {[%emt 0:00:01]} Qe7 {[%emt 0:00:11]} 9. c3 {[%emt 0:00:04]} d6 {[%emt 0:00:11]} 10. d4 {[%emt 0:00:02]} Bb6 {[%emt 0:00:18]} 11. Bg5 {[%emt 0:00:10]} h6 {[%emt 0:00:02]} 12. Bh4 {[%emt 0:00:01]} g5 {[%emt 0:01:12]} 13. Bg3 {[%emt 0:00:02]} Nh5 {[%emt 0:00:05]} 14. Kh1 {[%emt 0:00:31]} Nxg3+ {[%emt 0:00:05]} 15. fxg3 {[%emt 0:00:01]} g4 {[%emt 0:01:19]} 16. Nh4 {[%emt 0:00:18]} Qg5 {[%emt 0:00:37]} 17. Qd2 {[%emt 0:00:50]} Qxd2 {[%emt 0:00:25]} 18. Nxd2 {[%emt 0:00:02]} exd4 {[%emt 0:00:03]} 19. hxg4 {[%emt 0:00:15]} Kg7 {[%emt 0:00:14]} 20. Bd5 {[%emt 0:00:15]} Bb7 {[%emt 0:00:09]} 21. Nf5+ {[%emt 0:00:02]} Kh7 {[%emt 0:00:07]} 22. Bxc6 Bxc6 {[%emt 0:00:05]} 23. cxd4 {[%emt 0:00:16]} Bd7 {[%emt 0:00:13]} 24. Nf3 {[%emt 0:00:17]} Rg8 {[%emt 0:00:20]} 25. Nh2 {[%emt 0:00:44]} Bxf5 {[%emt 0:00:14]} 26. exf5 {[%emt 0:00:01]} Bxd4 {[%emt 0:00:09]} 27. Re7 {[%emt 0:00:14]} Rg7 {[%emt 0:00:14]} 28. Rxc7 {[%emt 0:00:04]} Bxb2 {[%emt 0:00:02]} 29. Re1 {[%emt 0:00:16]} Be5 {[%emt 0:00:02]} 30. Rc6 {[%emt 0:00:32]} Bxg3 {[%emt 0:00:10]} 31. Re4 {[%emt 0:00:19]} Be5 {[%emt 0:00:11]} 32. Nf3 {[%emt 0:00:12]} Bg3 {[%emt 0:00:19]} 33. Rc3 {[%emt 0:01:00]} Rag8 {[%emt 0:00:24]} 34. Kg1 {[%emt 0:01:25]} Rxg4 {[%emt 0:00:29]} 35. Re7 {[%emt 0:00:30]} R8g7 {[%emt 0:00:19]} 36. f6 {[%emt 0:00:01]} R7g6 {[%emt 0:00:21]} 37. Rxf7+ {[%emt 0:00:03]} Kg8 {[%emt 0:00:02]} 38. Rcc7 {[%emt 0:00:33]} Rc4 {[%emt 0:00:42]} 39. Rg7+ {[%emt 0:00:19]} Rxg7 {[%emt 0:00:06]} 40. Rxg7+ {[%emt 0:00:01]} Kf8 {[%emt 0:00:04]} 41. Rxg3 {[%emt 0:00:02]} Rf4 {[%emt 0:00:04]} 42. Rg6 {[%emt 0:00:10]} a5 {[%emt 0:00:11]} 43. Rxh6 {[%emt 0:00:04]} a4 {[%emt 0:00:01]} 44. Ng5 {[%emt 0:00:01]} Rf5 {[%emt 0:00:09]} 45. Rh8# {[%emt 0:00:03]} 1-0

[Event "3rd FIDE WCCC Rapid U08 2019"]
[Site "Minsk"]
[Date "2019.08.17"]
[Round "7.3"]
[White "Jasiulewicz, Kamil"]
[Black "Yeganegi, Barad"]
[Result "0-1"]
[ECO "B22"]
[WhiteElo "1083"]
[BlackElo "1612"]
[Annotator "NA"]
[PlyCount "106"]
[EventDate "2019.08.16"]
[EventType "swiss"]
[EventCountry "BLR"]
[SourceTitle "playchess.com"]
[Source "ChessBase"]
[SourceQuality "1"]
[TimeControl "600+5"]

1. e4 {[%emt 0:00:00]} c5 {[%emt 0:00:00]} 2. c3 {[%emt 0:00:00]} Nf6 {[%emt 0:00:00]} 3. Nf3 {[%emt 0:00:03]} Nxe4 {[%emt 0:00:01]} 4. d4 {[%emt 0:00:03]} cxd4 {[%emt 0:00:02]} 5. cxd4 {[%emt 0:00:02]} Nf6 {[%emt 0:00:03]} 6. Nc3 {[%emt 0:00:02]} Nc6 {[%emt 0:00:03]} 7. Bb5 {[%emt 0:00:07]} a6 {[%emt 0:00:06]} 8. Ba4 {[%emt 0:00:03]} g6 {[%emt 0:00:05]} 9. Be3 {[%emt 0:00:02]} Bg7 {[%emt 0:00:02]} 10. O-O {[%emt 0:00:03]} O-O {[%emt 0:00:02]} 11. Rc1 {[%emt 0:00:04]} b5 {[%emt 0:00:11]} 12. Bb3 {[%emt 0:00:03]} Bb7 {[%emt 0:00:02]} 13. Ne2 {[%emt 0:00:20]} Na5 {[%emt 0:00:16]} 14. Ng3 {[%emt 0:00:30]} Nxb3 {[%emt 0:00:03]} 15. axb3 {[%emt 0:00:02]} d6 {[%emt 0:00:13]} 16. Re1 {[%emt 0:00:12]} Rc8 {[%emt 0:00:05]} 17. Qd2 {[%emt 0:00:14]} Qd7 {[%emt 0:00:08]} 18. Qe2 {[%emt 0:00:21]} Bd5 {[%emt 0:00:13]} 19. Rxc8 {[%emt 0:00:32]} Rxc8 {[%emt 0:00:02]} 20. Bg5 {[%emt 0:00:04]} Re8 {[%emt 0:00:13]} 21. Bxf6 {[%emt 0:00:24]} Bxf6 {[%emt 0:00:03]} 22. Ne4 {[%emt 0:00:10]} Bg7 {[%emt 0:00:03]} 23. Nc3 {[%emt 0:00:08]} Bxb3 {[%emt 0:00:08]} 24. Ra1 {[%emt 0:00:12]} Bc4 {[%emt 0:00:14]} 25. Qe3 {[%emt 0:00:20]} Qc6 {[%emt 0:00:14]} 26. Rc1 {[%emt 0:00:29]} Qb7 {[%emt 0:00:20]} 27. Ne4 {[%emt 0:00:18]} Bd5 {[%emt 0:00:13]} 28. Nxd6 {[%emt 0:00:22]} Bh6 {[%emt 0:01:59]} 29. Qe1 {[%emt 0:00:55]} Qd7 {[%emt 0:00:17]} 30. Nxe8 {[%emt 0:00:52]} Bxc1 {[%emt 0:00:05]} 31. Qxc1 {[%emt 0:00:09]} Qxe8 {[%emt 0:00:10]} 32. Qe3 {[%emt 0:00:06]} Qd8 {[%emt 0:00:33]} 33. Ne1 {[%emt 0:00:16]} Qc7 {[%emt 0:00:22]} 34. Qc3 {[%emt 0:00:27]} Qxc3 {[%emt 0:00:05]} 35. bxc3 {[%emt 0:00:01]} a5 {[%emt 0:00:03]} 36. Nc2 {[%emt 0:00:07]} a4 {[%emt 0:00:01]} 37. f3 {[%emt 0:00:10]} e6 {[%emt 0:00:08]} 38. Kf2 {[%emt 0:00:01]} Kf8 {[%emt 0:00:02]} 39. Ke3 {[%emt 0:00:08]} Bc4 {[%emt 0:00:01]} 40. Kd2 {[%emt 0:00:27]} Ke7 {[%emt 0:00:03]} 41. Na3 {[%emt 0:00:01]} Kd6 {[%emt 0:00:02]} 42. Ke3 {[%emt 0:00:10]} Kd5 {[%emt 0:00:03]} 43. Nc2 {[%emt 0:00:09]} Bf1 {[%emt 0:00:04]} 44. g3 {[%emt 0:00:14]} Kc4 {[%emt 0:00:02]} 45. Kd2 {[%emt 0:00:12]} Kb3 {[%emt 0:00:05]} 46. Nb4 {[%emt 0:00:16]} a3 {[%emt 0:00:04]} 47. Nc2 {[%emt 0:00:25]} a2 {[%emt 0:00:04]} 48. Kc1 {[%emt 0:00:08]} Kxc3 {[%emt 0:00:02]} 49. Na1 {[%emt 0:00:10]} b4 {[%emt 0:00:01]} 50. Nc2 {[%emt 0:00:14]} b3 {[%emt 0:00:02]} 51. Na3 {[%emt 0:00:05]} b2+ {[%emt 0:00:13]} 52. Kd1 {[%emt 0:00:03]} b1=Q+ {[%emt 0:00:02]} 53. Nxb1+ {[%emt 0:00:02]} axb1=Q# {[%emt 0:00:06]} 0-1